[Event "European Blitz-ch 2018"]
[Site "Skopje"]
[Date "2018.12.07"]
[Round "12"]
[White "Banikas, Hristos"]
[Black "Stojanovski, Dejan"]
[Result "1-0"]
[ECO "A57"]
[WhiteElo "2601"]
[BlackElo "2430"]
[PlyCount "66"]
[EventDate "2018.12.06"]
[EventType "swiss"]
[EventCountry "MKD"]
[TimeControl "180+2"]

1. d4 {[%emt 0:00:00]} Nf6 {[%emt 0:00:00]} 2. c4 {[%emt 0:00:00]} c5 {[%emt 0:00:00]} 3. d5 {[%emt 0:00:01]} b5 {[%emt 0:00:00]} 4. Nf3 {[%emt 0:00:01]} g6 {[%emt 0:00:00]} 5. cxb5 {[%emt 0:03:08]} a6 6. e3 {[%emt 0:00:00]} Bg7 {[%emt 0:00:05]} 7. Nc3 {[%emt 0:00:00]} O-O {[%emt 0:00:03]} 8. a4 {[%emt 0:00:00]} e6 {[%emt 0:00:03]} 9. dxe6 {[%emt 0:00:00]} fxe6 {[%emt 0:00:01]} 10. Be2 {[%emt 0:00:00]} d5 {[%emt 0:00:01]} 11. O-O {[%emt 0:00:00]} Bb7 {[%emt 0:00:05]} 12. Ra3 {[%emt 0:00:00]} Nbd7 {[%emt 0:00:01]} 13. bxa6 {[%emt 0:00:00]} Bxa6 {[%emt 0:00:01]} 14. Bxa6 {[%emt 0:00:00]} Rxa6 {[%emt 0:00:00]} 15. e4 {[%emt 0:00:00]} d4 {[%emt 0:00:02]} 16. Qe2 {[%emt 0:00:00]} Qa8 {[%emt 0:00:07]} 17. Nb5 {[%emt 0:00:00]} Qxe4 {[%emt 0:00:12]} 18. Qxe4 {[%emt 0:00:00]} Nxe4 {[%emt 0:00:01]} 19. Re1 {[%emt 0:00:00]} Ndf6 {[%emt 0:00:01]} 20. Ne5 {[%emt 0:00:00]} Nxf2 {[%emt 0:00:26]} 21. Nc7 {[%emt 0:00:00]} Rb6 {[%emt 0:00:11]} 22. Nc4 {[%emt 0:00:34]} Rb4 23. Nxe6 {[%emt 0:00:00]} Rf7 {[%emt 0:00:24]} 24. Nd6 {[%emt 0:00:00]} Rd7 {[%emt 0:00:05]} 25. Bf4 {[%emt 0:00:00]} g5 {[%emt 0:00:35]} 26. Nxg7 {[%emt 0:00:00]} Kxg7 {[%emt 0:00:09]} 27. Be5 {[%emt 0:00:00]} N2g4 {[%emt 0:00:01]} 28. Ne8+ {[%emt 0:00:00]} Kf7 {[%emt 0:00:01]} 29. Nxf6 {[%emt 0:00:00]} Nxf6 {[%emt 0:00:01]} 30. Rf3 {[%emt 0:00:00]} Rb6 {[%emt 0:00:15]} 31. Ref1 {[%emt 0:00:00]} d3 {[%emt 0:00:01]} 32. Rxf6+ {[%emt 0:00:00]} Rxf6 {[%emt 0:00:01]} 33. Bxf6 {[%emt 0:00:00]} Ke8 {[%emt 0:01:13]} 1-0

[Event "European Blitz-ch 2018"]
[Site "Skopje"]
[Date "2018.12.07"]
[Round "12"]
[White "Georgiev, Kiril"]
[Black "Ozen, Bahadir"]
[Result "1-0"]
[ECO "E06"]
[WhiteElo "2595"]
[BlackElo "2349"]
[PlyCount "107"]
[EventDate "2018.12.06"]
[EventType "swiss"]
[EventCountry "MKD"]
[TimeControl "180+2"]

1. d4 {[%emt 0:00:00]} d5 {[%emt 0:00:00]} 2. Nf3 {[%emt 0:00:04]} Nf6 {[%emt 0:00:02]} 3. c4 {[%emt 0:00:03]} e6 {[%emt 0:00:01]} 4. Nc3 {[%emt 0:00:06]} Be7 {[%emt 0:00:03]} 5. g3 {[%emt 0:00:06]} O-O {[%emt 0:00:03]} 6. Bg2 {[%emt 0:00:01]} dxc4 {[%emt 0:00:01]} 7. Ne5 {[%emt 0:00:02]} c5 {[%emt 0:00:01]} 8. dxc5 {[%emt 0:00:04]} Qc7 {[%emt 0:00:02]} 9. Nxc4 {[%emt 0:00:07]} Qxc5 {[%emt 0:00:01]} 10. Qb3 {[%emt 0:00:03]} Nc6 {[%emt 0:00:02]} 11. Be3 {[%emt 0:00:09]} Nd4 {[%emt 0:00:16]} 12. Bxd4 {[%emt 0:00:07]} Qxd4 {[%emt 0:00:02]} 13. O-O {[%emt 0:00:03]} Rb8 {[%emt 0:00:05]} 14. Rfd1 {[%emt 0:00:09]} Qc5 {[%emt 0:00:10]} 15. Rac1 {[%emt 0:00:27]} Bd7 {[%emt 0:00:18]} 16. Ne4 {[%emt 0:00:14]} Nxe4 {[%emt 0:00:07]} 17. Bxe4 {[%emt 0:00:05]} Bc6 {[%emt 0:00:11]} 18. Bxc6 {[%emt 0:00:08]} bxc6 {[%emt 0:00:19]} 19. Qc2 {[%emt 0:00:04]} Bf6 {[%emt 0:00:23]} 20. b3 {[%emt 0:00:03]} Rfd8 {[%emt 0:00:02]} 21. Nd2 {[%emt 0:00:26]} Qa5 {[%emt 0:00:43]} 22. Ne4 {[%emt 0:00:07]} Be7 {[%emt 0:00:00]} 23. e3 {[%emt 0:00:14]} h6 {[%emt 0:00:02]} 24. Nc3 {[%emt 0:00:13]} c5 {[%emt 0:00:21]} 25. Na4 {[%emt 0:00:08]} Rbc8 {[%emt 0:00:01]} 26. Rxd8+ {[%emt 0:00:09]} Rxd8 {[%emt 0:00:01]} 27. Rd1 {[%emt 0:00:02]} Rd5 {[%emt 0:00:18]} 28. Nc3 {[%emt 0:00:10]} Rxd1+ {[%emt 0:00:02]} 29. Nxd1 {[%emt 0:00:01]} Qe1+ {[%emt 0:00:01]} 30. Kg2 {[%emt 0:00:02]} Bf6 {[%emt 0:00:02]} 31. Qd3 {[%emt 0:00:10]} g6 {[%emt 0:00:01]} 32. h4 {[%emt 0:00:04]} h5 {[%emt 0:00:01]} 33. Qc2 {[%emt 0:00:06]} Kg7 {[%emt 0:00:01]} 34. Nb2 {[%emt 0:00:01]} Qb4 {[%emt 0:00:17]} 35. Nc4 {[%emt 0:00:03]} Qb7+ {[%emt 0:00:01]} 36. Kg1 {[%emt 0:00:02]} Qf3 {[%emt 0:00:01]} 37. Qd3 {[%emt 0:00:02]} Qd5 {[%emt 0:00:01]} 38. Qc2 {[%emt 0:00:03]} Qf3 {[%emt 0:00:01]} 39. Kf1 {[%emt 0:00:03]} a6 {[%emt 0:00:04]} 40. Nd2 {[%emt 0:00:04]} Qh1+ {[%emt 0:00:04]} 41. Ke2 {[%emt 0:00:01]} Qd5 {[%emt 0:00:03]} 42. Ne4 {[%emt 0:00:02]} Be7 {[%emt 0:00:02]} 43. Qc3+ {[%emt 0:00:01]} Kg8 {[%emt 0:00:00]} 44. Qd3 {[%emt 0:00:01]} Qc6 {[%emt 0:00:01]} 45. Nd2 {[%emt 0:00:02]} Bf6 {[%emt 0:00:01]} 46. Nc4 {[%emt 0:00:00]} Kg7 {[%emt 0:00:00]} 47. Nd6 {[%emt 0:00:02]} Qh1 {[%emt 0:00:01]} 48. Ne8+ {[%emt 0:00:02]} Kf8 {[%emt 0:00:03]} 49. Nxf6 {[%emt 0:00:01]} Qa1 {[%emt 0:00:01]} 50. Qd8+ {[%emt 0:00:02]} Kg7 {[%emt 0:00:01]} 51. Ne8+ {[%emt 0:00:01]} Kh6 {[%emt 0:00:02]} 52. Qg5+ {[%emt 0:00:14]} Kh7 {[%emt 0:00:17]} 53. Qf6 {[%emt 0:00:00]} Qxa2+ {[%emt 0:00:02]} 54. Kf3 {[%emt 0:00:00]} 1-0

[Event "European Blitz-ch 2018"]
[Site "Skopje"]
[Date "2018.12.07"]
[Round "12"]
[White "Brkic, Ante"]
[Black "Van Foreest, Jorden"]
[Result "0-1"]
[ECO "B72"]
[WhiteElo "2563"]
[BlackElo "2614"]
[PlyCount "42"]
[EventDate "2018.12.06"]
[EventType "swiss"]
[EventCountry "MKD"]
[TimeControl "180+2"]

1. e4 {[%emt 0:00:00]} c5 {[%emt 0:00:00]} 2. Nf3 {[%emt 0:00:00]} d6 {[%emt 0:00:00]} 3. d4 {[%emt 0:00:01]} cxd4 {[%emt 0:00:01]} 4. Nxd4 {[%emt 0:00:01]} Nf6 {[%emt 0:00:02]} 5. Nc3 {[%emt 0:00:01]} a6 {[%emt 0:00:01]} 6. a3 {[%emt 0:00:00]} Nc6 {[%emt 0:00:02]} 7. Be2 {[%emt 0:00:07]} g6 {[%emt 0:00:04]} 8. Be3 {[%emt 0:00:03]} Bg7 {[%emt 0:00:01]} 9. Qd2 {[%emt 0:00:02]} O-O {[%emt 0:00:04]} 10. O-O-O {[%emt 0:00:02]} Ng4 {[%emt 0:00:19]} 11. Bxg4 {[%emt 0:00:01]} Bxg4 {[%emt 0:00:01]} 12. f3 {[%emt 0:00:01]} Bd7 {[%emt 0:00:01]} 13. h4 {[%emt 0:00:05]} Ne5 {[%emt 0:00:02]} 14. h5 {[%emt 0:00:26]} Nc4 {[%emt 0:00:05]} 15. Qd3 {[%emt 0:00:33]} Rc8 {[%emt 0:00:26]} 16. hxg6 {[%emt 0:00:02]} hxg6 {[%emt 0:00:03]} 17. Bh6 {[%emt 0:00:15]} Qb6 {[%emt 0:00:02]} 18. b3 {[%emt 0:00:32]} Qa5 {[%emt 0:00:08]} 19. Nb1 {[%emt 0:00:13]} Bxh6+ {[%emt 0:00:06]} 20. Rxh6 {[%emt 0:00:01]} Qg5+ {[%emt 0:00:01]} 21. Nd2 {[%emt 0:00:11]} Ne5 {[%emt 0:00:11]} 0-1

[Event "European Blitz-ch 2018"]
[Site "Skopje"]
[Date "2018.12.07"]
[Round "12"]
[White "Santos Ruiz, Miguel"]
[Black "Demidov, Mikhail"]
[Result "1-0"]
[ECO "D02"]
[WhiteElo "2523"]
[BlackElo "2520"]
[PlyCount "63"]
[EventDate "2018.12.06"]
[EventType "swiss"]
[EventCountry "MKD"]
[TimeControl "180+2"]

1. d4 {[%emt 0:00:00]} Nf6 {[%emt 0:00:00]} 2. Nf3 {[%emt 0:00:00]} d5 {[%emt 0:00:00]} 3. Bf4 {[%emt 0:00:01]} c5 {[%emt 0:00:04]} 4. dxc5 {[%emt 0:00:01]} e6 {[%emt 0:00:06]} 5. e3 {[%emt 0:00:00]} Bxc5 {[%emt 0:00:02]} 6. Be2 {[%emt 0:00:01]} O-O {[%emt 0:00:04]} 7. O-O {[%emt 0:00:02]} Nc6 {[%emt 0:02:58]} 8. c4 d4 {[%emt 0:00:00]} 9. exd4 {[%emt 0:00:02]} Nxd4 {[%emt 0:00:00]} 10. Nc3 {[%emt 0:00:00]} Nxe2+ {[%emt 0:00:00]} 11. Qxe2 {[%emt 0:00:01]} b6 {[%emt 0:00:00]} 12. Rad1 {[%emt 0:00:17]} Qe7 {[%emt 0:00:00]} 13. a3 {[%emt 0:00:06]} a5 {[%emt 0:00:00]} 14. Na4 {[%emt 0:00:01]} Ba6 {[%emt 0:00:00]} 15. Nxc5 {[%emt 0:00:36]} Qxc5 {[%emt 0:00:00]} 16. Ne5 {[%emt 0:00:18]} Rfc8 {[%emt 0:00:00]} 17. Qe3 {[%emt 0:00:08]} Bxc4 {[%emt 0:00:00]} 18. Nxc4 {[%emt 0:00:31]} Qxc4 {[%emt 0:00:00]} 19. Rc1 {[%emt 0:00:14]} Qb5 {[%emt 0:00:00]} 20. Qd2 {[%emt 0:00:17]} Nd5 {[%emt 0:00:00]} 21. Be5 {[%emt 0:00:05]} f6 {[%emt 0:00:00]} 22. Bg3 {[%emt 0:00:01]} e5 {[%emt 0:00:00]} 23. Rfd1 {[%emt 0:00:10]} Ne7 {[%emt 0:00:00]} 24. f3 {[%emt 0:00:12]} Qb3 {[%emt 0:00:00]} 25. Bf2 {[%emt 0:00:04]} b5 {[%emt 0:00:00]} 26. h3 {[%emt 0:00:07]} a4 {[%emt 0:00:10]} 27. Qd7 {[%emt 0:00:15]} Rxc1 {[%emt 0:00:13]} 28. Rxc1 {[%emt 0:00:01]} Qf7 {[%emt 0:00:14]} 29. Rc7 {[%emt 0:00:06]} Re8 {[%emt 0:00:02]} 30. Bc5 {[%emt 0:00:01]} Kf8 {[%emt 0:00:02]} 31. Qxb5 {[%emt 0:00:02]} Qd5 {[%emt 0:00:01]} 32. Bxe7+ {[%emt 0:00:01]} 1-0

[Event "European Blitz-ch 2018"]
[Site "Skopje"]
[Date "2018.12.07"]
[Round "12"]
[White "Nenezic, Marko"]
[Black "Tejedor Fuente, Enrique"]
[Result "1-0"]
[ECO "E97"]
[WhiteElo "2515"]
[BlackElo "2428"]
[PlyCount "74"]
[EventDate "2018.12.06"]
[EventType "swiss"]
[EventCountry "MKD"]
[TimeControl "180+2"]

1. Nf3 {[%emt 0:00:00]} Nc6 {[%emt 0:00:00]} 2. d4 {[%emt 0:00:01]} d6 {[%emt 0:00:00]} 3. c4 {[%emt 0:00:03]} g6 {[%emt 0:00:01]} 4. Nc3 {[%emt 0:00:01]} Bg7 {[%emt 0:00:01]} 5. e3 {[%emt 0:03:05]} e5 6. Be2 {[%emt 0:00:00]} Nge7 {[%emt 0:00:02]} 7. O-O {[%emt 0:00:00]} O-O {[%emt 0:00:02]} 8. d5 {[%emt 0:00:00]} Nb8 {[%emt 0:00:01]} 9. e4 {[%emt 0:00:00]} Nd7 {[%emt 0:00:02]} 10. Rb1 {[%emt 0:00:00]} h6 {[%emt 0:00:03]} 11. b4 {[%emt 0:00:00]} a5 {[%emt 0:00:00]} 12. a3 {[%emt 0:00:00]} f5 {[%emt 0:00:01]} 13. Nd2 {[%emt 0:00:00]} Nf6 {[%emt 0:00:07]} 14. f3 {[%emt 0:00:00]} f4 {[%emt 0:00:01]} 15. c5 {[%emt 0:00:00]} Kh8 {[%emt 0:00:09]} 16. Nc4 {[%emt 0:00:00]} axb4 {[%emt 0:00:05]} 17. axb4 {[%emt 0:00:00]} g5 {[%emt 0:00:06]} 18. Ba3 {[%emt 0:00:00]} Ne8 {[%emt 0:00:06]} 19. b5 {[%emt 0:00:00]} Rxa3 {[%emt 0:00:56]} 20. Nxa3 {[%emt 0:00:00]} dxc5 {[%emt 0:00:01]} 21. Nc4 {[%emt 0:00:00]} b6 {[%emt 0:01:58]} 22. Ra1 {[%emt 0:00:00]} h5 {[%emt 0:00:00]} 23. Ra8 {[%emt 0:00:00]} Qd7 {[%emt 0:00:00]} 24. Ra7 {[%emt 0:00:00]} Nd6 {[%emt 0:00:00]} 25. Nxb6 {[%emt 0:00:00]} Qd8 {[%emt 0:00:00]} 26. Nba4 {[%emt 0:00:00]} Bh6 {[%emt 0:00:00]} 27. Kh1 {[%emt 0:00:00]} Rg8 {[%emt 0:00:00]} 28. Nxc5 {[%emt 0:00:00]} g4 {[%emt 0:00:00]} 29. Ne6 {[%emt 0:00:00]} Bxe6 {[%emt 0:00:00]} 30. dxe6 {[%emt 0:00:00]} Ng6 {[%emt 0:00:00]} 31. b6 {[%emt 0:00:00]} gxf3 {[%emt 0:00:05]} 32. Bxf3 {[%emt 0:00:00]} Nh4 {[%emt 0:00:09]} 33. bxc7 {[%emt 0:00:00]} Qg5 {[%emt 0:00:01]} 34. Qe2 {[%emt 0:00:00]} Rc8 {[%emt 0:00:07]} 35. Nd5 {[%emt 0:00:00]} Bf8 {[%emt 0:00:03]} 36. Bxh5 {[%emt 0:00:00]} Qg7 {[%emt 0:00:02]} 37. e7 {[%emt 0:00:00]} Bxe7 {[%emt 0:00:01]} 1-0

[Event "European Blitz-ch 2018"]
[Site "Skopje"]
[Date "2018.12.07"]
[Round "12"]
[White "Pancevski, Filip"]
[Black "Petkidis, Anthony"]
[Result "0-1"]
[ECO "A38"]
[WhiteElo "2495"]
[BlackElo "2375"]
[PlyCount "58"]
[EventDate "2018.12.06"]
[EventType "swiss"]
[EventCountry "MKD"]
[TimeControl "180+2"]

1. c4 {[%emt 0:00:00]} c5 {[%emt 0:00:02]} 2. g3 {[%emt 0:00:01]} Nf6 {[%emt 0:00:02]} 3. Bg2 {[%emt 0:00:00]} Nc6 {[%emt 0:00:03]} 4. Nc3 {[%emt 0:00:02]} g6 {[%emt 0:00:02]} 5. a3 {[%emt 0:00:01]} Bg7 {[%emt 0:00:04]} 6. Rb1 {[%emt 0:00:01]} a5 {[%emt 0:00:07]} 7. Nf3 {[%emt 0:00:02]} d6 {[%emt 0:00:01]} 8. O-O {[%emt 0:00:06]} O-O {[%emt 0:00:02]} 9. Ne1 {[%emt 0:00:02]} Rb8 {[%emt 0:00:13]} 10. Nc2 {[%emt 0:00:03]} Nd4 {[%emt 0:00:05]} 11. b4 {[%emt 0:00:10]} axb4 {[%emt 0:00:09]} 12. axb4 {[%emt 0:00:02]} b6 {[%emt 0:00:17]} 13. Nxd4 {[%emt 0:00:10]} cxd4 {[%emt 0:00:01]} 14. Nb5 {[%emt 0:00:06]} e5 {[%emt 0:00:03]} 15. d3 {[%emt 0:00:19]} d5 {[%emt 0:00:12]} 16. Bg5 {[%emt 0:00:37]} dxc4 {[%emt 0:00:05]} 17. dxc4 {[%emt 0:00:03]} h6 {[%emt 0:00:07]} 18. Bxf6 {[%emt 0:00:02]} Qxf6 {[%emt 0:00:06]} 19. Bd5 {[%emt 0:00:38]} Bd7 {[%emt 0:00:05]} 20. e4 {[%emt 0:00:31]} dxe3 {[%emt 0:00:14]} 21. fxe3 {[%emt 0:00:01]} Qe7 {[%emt 0:00:02]} 22. e4 {[%emt 0:00:15]} Kh7 {[%emt 0:00:04]} 23. Nc3 {[%emt 0:00:07]} f5 {[%emt 0:00:05]} 24. Qd3 {[%emt 0:00:03]} f4 {[%emt 0:00:02]} 25. Ra1 {[%emt 0:00:12]} Qxb4 {[%emt 0:00:04]} 26. Ra7 {[%emt 0:00:03]} Bh3 {[%emt 0:00:12]} 27. Rfa1 {[%emt 0:00:10]} Qc5+ {[%emt 0:00:02]} 28. Kh1 {[%emt 0:00:01]} Qf2 {[%emt 0:00:04]} 29. Rg1 {[%emt 0:00:01]} f3 {[%emt 0:00:13]} 0-1

[Event "European Blitz-ch 2018"]
[Site "Skopje"]
[Date "2018.12.07"]
[Round "12"]
[White "Pezelj, Novak"]
[Black "Dvirnyy, Danyyil"]
[Result "0-1"]
[ECO "B50"]
[WhiteElo "2475"]
[BlackElo "2485"]
[PlyCount "96"]
[EventDate "2018.12.06"]
[EventType "swiss"]
[EventCountry "MKD"]
[TimeControl "180+2"]

1. e4 {[%emt 0:00:00]} c5 {[%emt 0:00:00]} 2. Nf3 {[%emt 0:00:01]} d6 {[%emt 0:00:01]} 3. c3 {[%emt 0:00:01]} Nf6 {[%emt 0:00:02]} 4. Bd3 {[%emt 0:00:03]} g6 {[%emt 0:00:10]} 5. Bc2 {[%emt 0:00:06]} Bg7 {[%emt 0:00:02]} 6. d4 {[%emt 0:00:04]} O-O {[%emt 0:00:05]} 7. O-O {[%emt 0:00:09]} Bg4 {[%emt 0:00:02]} 8. dxc5 {[%emt 0:00:27]} dxc5 {[%emt 0:00:02]} 9. Qe2 {[%emt 0:00:01]} Nc6 {[%emt 0:00:02]} 10. h3 {[%emt 0:00:02]} Be6 {[%emt 0:00:17]} 11. Na3 {[%emt 0:00:33]} Qc7 {[%emt 0:00:10]} 12. Bb3 {[%emt 0:00:05]} Bxb3 {[%emt 0:00:15]} 13. axb3 {[%emt 0:00:02]} Nd7 {[%emt 0:00:02]} 14. Bg5 {[%emt 0:00:10]} a6 {[%emt 0:00:04]} 15. Nc4 {[%emt 0:00:05]} b5 {[%emt 0:00:02]} 16. Ne3 {[%emt 0:00:01]} e6 {[%emt 0:00:18]} 17. Bh4 {[%emt 0:00:11]} Nce5 {[%emt 0:00:23]} 18. Rfd1 {[%emt 0:00:15]} Nxf3+ {[%emt 0:00:13]} 19. Qxf3 {[%emt 0:00:01]} Ne5 {[%emt 0:00:01]} 20. Qe2 {[%emt 0:00:01]} Nc6 {[%emt 0:00:05]} 21. Ng4 {[%emt 0:00:06]} b4 {[%emt 0:00:58]} 22. Nf6+ {[%emt 0:00:21]} Kh8 {[%emt 0:00:01]} 23. Nd7 {[%emt 0:00:21]} Rfe8 {[%emt 0:00:02]} 24. Nxc5 {[%emt 0:00:03]} bxc3 {[%emt 0:00:01]} 25. bxc3 {[%emt 0:00:05]} Bxc3 {[%emt 0:00:03]} 26. Rac1 {[%emt 0:00:17]} Bg7 {[%emt 0:00:10]} 27. Nxa6 {[%emt 0:00:05]} Qb6 {[%emt 0:00:01]} 28. Nc5 {[%emt 0:00:01]} Nd4 {[%emt 0:00:01]} 29. Qc4 {[%emt 0:00:01]} e5 {[%emt 0:00:10]} 30. Qxf7 {[%emt 0:00:06]} Ne2+ {[%emt 0:00:01]} 31. Kh1 {[%emt 0:00:03]} Nxc1 {[%emt 0:00:02]} 32. Rxc1 {[%emt 0:00:01]} Rac8 {[%emt 0:00:03]} 33. b4 {[%emt 0:00:02]} Qxb4 {[%emt 0:00:05]} 34. Bf6 {[%emt 0:00:01]} Bxf6 {[%emt 0:00:06]} 35. Qxf6+ {[%emt 0:00:01]} Kg8 {[%emt 0:00:01]} 36. Qd6 {[%emt 0:00:02]} Qd4 {[%emt 0:00:06]} 37. Qb6 {[%emt 0:00:09]} Re7 {[%emt 0:00:03]} 38. Qb3+ {[%emt 0:00:03]} Kh8 {[%emt 0:00:01]} 39. Nd3 {[%emt 0:00:01]} Rxc1+ 40. Nxc1 {[%emt 0:00:01]} Qxf2 {[%emt 0:00:02]} 41. Qb8+ {[%emt 0:00:01]} Kg7 {[%emt 0:00:01]} 42. Qc8 {[%emt 0:00:02]} Qf1+ {[%emt 0:00:03]} 43. Kh2 {[%emt 0:00:01]} Qf4+ {[%emt 0:00:01]} 44. Kh1 {[%emt 0:00:00]} Rf7 {[%emt 0:00:01]} 45. Qc5 {[%emt 0:00:04]} Qxe4 {[%emt 0:00:02]} 46. Qg1 {[%emt 0:00:11]} Qc4 {[%emt 0:00:02]} 47. Qe3 {[%emt 0:00:03]} Rf1+ {[%emt 0:00:01]} 48. Kh2 {[%emt 0:00:01]} Qf4+ {[%emt 0:00:01]} 0-1

[Event "European Blitz-ch 2018"]
[Site "Skopje"]
[Date "2018.12.07"]
[Round "12"]
[White "Kalezic, Blazo"]
[Black "Jovic, Stanoje"]
[Result "0-1"]
[ECO "A07"]
[WhiteElo "2460"]
[BlackElo "2240"]
[PlyCount "115"]
[EventDate "2018.12.06"]
[EventType "swiss"]
[EventCountry "MKD"]
[TimeControl "180+2"]

1. e4 {[%emt 0:00:01]} c6 {[%emt 0:00:00]} 2. d3 {[%emt 0:00:01]} d5 {[%emt 0:00:01]} 3. Nd2 {[%emt 0:00:01]} g6 {[%emt 0:00:02]} 4. g3 {[%emt 0:00:02]} Bg7 {[%emt 0:00:03]} 5. Bg2 {[%emt 0:00:01]} Nf6 {[%emt 0:00:01]} 6. Ngf3 {[%emt 0:00:09]} Bg4 {[%emt 0:00:03]} 7. h3 {[%emt 0:00:07]} Bxf3 {[%emt 0:00:01]} 8. Qxf3 {[%emt 0:00:01]} O-O {[%emt 0:00:02]} 9. O-O {[%emt 0:00:03]} a5 {[%emt 0:00:01]} 10. Qe2 {[%emt 0:00:09]} e5 {[%emt 0:00:08]} 11. exd5 {[%emt 0:00:09]} Nxd5 {[%emt 0:00:09]} 12. a3 {[%emt 0:00:10]} Nd7 {[%emt 0:00:19]} 13. a4 {[%emt 0:00:15]} Nc5 {[%emt 0:00:08]} 14. Nc4 {[%emt 0:00:07]} Nb4 {[%emt 0:00:09]} 15. Be3 {[%emt 0:00:10]} Ne6 {[%emt 0:00:04]} 16. Rac1 {[%emt 0:00:26]} Nd4 {[%emt 0:00:09]} 17. Qd1 {[%emt 0:00:04]} Nd5 {[%emt 0:00:08]} 18. c3 {[%emt 0:00:09]} Nxe3 {[%emt 0:00:08]} 19. Nxe3 {[%emt 0:00:10]} Ne6 {[%emt 0:00:03]} 20. Qc2 {[%emt 0:00:04]} Qc7 {[%emt 0:00:06]} 21. Rcd1 {[%emt 0:00:05]} Rad8 {[%emt 0:00:02]} 22. Rd2 {[%emt 0:00:08]} f5 {[%emt 0:00:02]} 23. Re1 {[%emt 0:00:17]} f4 {[%emt 0:00:06]} 24. Qb3 {[%emt 0:00:13]} Qf7 {[%emt 0:00:39]} 25. Ng4 {[%emt 0:00:09]} f3 {[%emt 0:00:17]} 26. Bxf3 {[%emt 0:00:05]} Qxf3 {[%emt 0:00:36]} 27. Qxe6+ {[%emt 0:00:01]} Kh8 {[%emt 0:00:00]} 28. Nxe5 {[%emt 0:00:04]} Bxe5 {[%emt 0:00:05]} 29. Qxe5+ {[%emt 0:00:01]} Kg8 {[%emt 0:00:01]} 30. Re3 {[%emt 0:00:03]} Qf7 {[%emt 0:00:05]} 31. Qe6 {[%emt 0:00:02]} Qxe6 {[%emt 0:00:06]} 32. Rxe6 {[%emt 0:00:37]} Kf7 33. Re3 {[%emt 0:00:00]} Rfe8 {[%emt 0:00:07]} 34. Rde2 {[%emt 0:00:00]} Rxe3 {[%emt 0:00:02]} 35. Rxe3 {[%emt 0:00:00]} Kf6 {[%emt 0:00:02]} 36. Kf1 {[%emt 0:00:00]} b5 {[%emt 0:00:02]} 37. axb5 {[%emt 0:00:10]} cxb5 38. Ke2 {[%emt 0:00:00]} Rb8 {[%emt 0:00:03]} 39. d4 {[%emt 0:00:00]} b4 {[%emt 0:00:01]} 40. Re5 {[%emt 0:00:00]} a4 {[%emt 0:00:02]} 41. c4 {[%emt 0:00:00]} a3 {[%emt 0:00:02]} 42. Kd2 {[%emt 0:00:00]} b3 {[%emt 0:00:03]} 43. Kc3 {[%emt 0:00:01]} a2 {[%emt 0:00:04]} 44. Ra5 {[%emt 0:00:01]} h5 {[%emt 0:00:04]} 45. f4 {[%emt 0:00:02]} Ke6 {[%emt 0:00:03]} 46. Ra6+ {[%emt 0:00:01]} Kd7 {[%emt 0:00:01]} 47. c5 {[%emt 0:00:02]} Kc7 {[%emt 0:00:01]} 48. d5 {[%emt 0:00:04]} Kb7 {[%emt 0:00:01]} 49. Ra3 {[%emt 0:00:03]} Kc7 {[%emt 0:00:03]} 50. Kc4 {[%emt 0:00:02]} h4 51. gxh4 {[%emt 0:00:05]} Kd7 {[%emt 0:00:06]} 52. Ra7+ {[%emt 0:00:02]} Ke8 {[%emt 0:00:02]} 53. c6 {[%emt 0:00:01]} Rd8 {[%emt 0:00:05]} 54. Kxb3 {[%emt 0:00:04]} Rxd5 {[%emt 0:00:01]} 55. Kxa2 {[%emt 0:00:01]} Rc5 {[%emt 0:00:02]} 56. Ra6 {[%emt 0:00:02]} Rc4 {[%emt 0:00:01]} 57. b3 {[%emt 0:00:02]} Rxf4 {[%emt 0:00:01]} 58. Ra8+ {[%emt 0:00:01]} 0-1

[Event "European Blitz-ch 2018"]
[Site "Skopje"]
[Date "2018.12.07"]
[Round "12"]
[White "Papakonstantinou, Dimitrios"]
[Black "Dragnev, Valentin"]
[Result "0-1"]
[ECO "C41"]
[WhiteElo "2308"]
[BlackElo "2483"]
[Annotator "RC"]
[PlyCount "36"]
[EventDate "2018.12.06"]
[EventType "swiss"]
[EventCountry "MKD"]
[TimeControl "180+2"]

1. e4 {[%emt 0:00:00]} e5 {[%emt 0:00:00]} 2. Nf3 {[%emt 0:00:00]} d6 {[%emt 0:00:00]} 3. d4 {[%emt 0:00:04]} exd4 {[%emt 0:00:00]} 4. Nxd4 {[%emt 0:00:02]} Nf6 {[%emt 0:00:01]} 5. Nc3 {[%emt 0:00:01]} Be7 {[%emt 0:00:04]} 6. g3 {[%emt 0:00:04]} O-O {[%emt 0:00:03]} 7. Bg2 {[%emt 0:00:01]} Bg4 {[%emt 0:00:06]} 8. f3 {[%emt 0:00:09]} Bd7 {[%emt 0:00:02]} 9. Be3 {[%emt 0:00:01]} Nc6 {[%emt 0:00:01]} 10. O-O {[%emt 0:00:03]} Re8 {[%emt 0:00:01]} 11. Qd2 {[%emt 0:00:04]} a6 {[%emt 0:00:09]} 12. Rae1 {[%emt 0:00:03]} Ne5 {[%emt 0:00:07]} 13. b3 {[%emt 0:00:01]} c5 {[%emt 0:00:06]} 14. Nde2 {[%emt 0:00:02]} Bc6 {[%emt 0:00:05]} 15. Nf4 {[%emt 0:00:02]} Bf8 {[%emt 0:00:14]} 16. Nfd5 {[%emt 0:00:05]} Nxd5 {[%emt 0:00:06]} 17. Nxd5 {[%emt 0:00:01]} b5 {[%emt 0:00:08]} 18. Rd1 {[%emt 0:00:04]} Ra7 {[%emt 0:00:16]} 0-1